bitfinex-derivatives/quotes_ETHF0:USTF0_20240917
["timestamp","ask_amount","ask_price","bid_price","bid_amount"]
[1726541553222,3.2078,2285.7,2285.5,0.4375]
[1726541553628,3.2078,2285.7,2285.2,7.0453]
[1726541554127,3.2078,2285.7,2285.4,0.43752]
[1726541554436,3.2078,2285.7,2285.2,7.0453]
[1726541554437,3.2078,2285.7,2285.5,0.43751]
[1726541556031,3.2078,2285.7,2285.4,0.43753]
[1726541556224,3.2078,2285.7,2285.5,0.43751]
[1726541556625,3.2078,2285.7,2285.6,0.43749]
[1726541556929,3.2078,2285.7,2285.4,0.43752]
[1726541557116,3.2078,2285.7,2285.3,0.43754]
[1726541557322,3.2078,2285.4,2285.3,0.43754]
[1726541564325,3.2078,2285.7,2285.5,0.4375]
[1726541566234,3.2078,2285.7,2285.6,0.43749]
[1726541566425,3.2078,2285.7,2285.2,0.4175]
[1726541566426,3.2078,2285.7,2285.5,0.4375]
[1726541568133,3.2078,2285.7,2285.4,0.43752]
[1726541569032,1.2459,2285.6,2285.2,0.4175]
[1726541569225,3.2078,2285.4,2285.3,0.43755]
[1726541571231,3.2078,2285.7,2285.6,0.43749]
[1726541572531,3.2078,2285.7,2285.5,0.4375]
[1726541574036,0.4375,2285.6,2285.3,0.43754]
[1726541574231,0.4375,2285.6,2285.2,0.4175]
[1726541574536,3.64529,2285.7,2285.4,0.43753]
[1726541575033,3.2078,2285.7,2285.3,6.6278]
[1726541575227,4.254,2286.0,2285.7,0.43747]
[1726541575431,4.152,2286.0,2285.8,0.3852]
[1726541576139,4.152,2286.0,2285.8,0.82265]
[1726541576533,4.152,2286.0,2285.8,0.3852]
[1726541576734,11.9464,2286.0,2285.8,0.3852]
[1726541576941,4.3744,2285.9,2285.5,0.4375]
[1726541577235,4.152,2286.0,2285.4,0.3852]
[1726541577437,3.2078,2286.1,2286.0,0.43742]
[1726541577736,3.2078,2286.4,2285.7,1.0937]
[1726541577934,3.2078,2286.4,2286.3,0.43736]
[1726541578132,3.42,2286.6,2286.3,0.43736]
[1726541579237,3.42,2286.6,2286.4,0.43734]
[1726541579437,3.42,2286.6,2286.3,0.43735]
[1726541579639,3.42,2286.6,2286.2,0.43737]
[1726541580231,6.6278,2286.4,2286.0,0.4154]
[1726541580439,6.6278,2286.1,2285.8,0.43744]
[1726541580635,6.6278,2286.1,2285.5,0.4154]
[1726541580942,3.85745,2285.9,2285.5,0.4154]
[1726541581135,3.85745,2285.9,2285.6,0.43749]
[1726541581328,3.2078,2285.8,2285.6,0.43749]
[1726541582537,3.2078,2285.8,2285.7,0.43748]
[1726541582843,3.2078,2285.8,2285.5,0.4154]
[1726541583236,3.2078,2285.8,2285.7,0.43748]
[1726541583739,0.3915,2286.0,2285.5,0.4154]
[1726541583944,0.3987,2286.2,2286.0,0.4374]
[1726541584140,3.2078,2286.4,2286.2,0.43738]
[1726541586637,7.7936,2286.3,2285.7,3.2078]
[1726541586842,3.2078,2286.0,2285.9,0.43744]
[1726541588241,3.8088,2286.1,2286.0,0.43742]
[1726541588242,0.3888,2286.1,2286.0,0.43742]
[1726541588447,0.404,2286.2,2285.6,3.997]
[1726541589447,0.404,2286.2,2286.0,0.43741]
[1726541589850,3.2078,2286.3,2286.2,0.43738]
[1726541590148,7.89193,2286.5,2285.8,1.09365]
[1726541590346,7.89193,2286.5,2286.2,0.43737]
[1726541591546,7.89193,2286.5,2285.8,1.09365]
[1726541591547,7.89193,2286.5,2286.3,0.43736]
[1726541593546,0.43734,2286.4,2286.2,0.43737]
[1726541593747,7.4546,2286.5,2286.0,0.43741]
[1726541593748,0.43739,2286.2,2286.0,0.43741]
[1726541593940,0.3883,2286.1,2286.0,0.43741]
[1726541595646,3.2078,2286.2,2286.1,0.4374]
[1726541597149,0.4102,2286.5,2286.1,4.3744]
[1726541597351,3.6021,2286.7,2286.6,0.4373]
[1726541597550,7.0221,2286.7,2286.5,0.43732]
[1726541597740,7.45939,2286.7,2286.5,0.43732]
[1726541598045,7.45939,2286.7,2286.4,0.43733]
[1726541598842,7.45939,2286.7,2286.5,0.43732]
[1726541599843,7.0221,2286.7,2286.5,0.43732]
[1726541600041,7.45939,2286.7,2286.5,0.43732]
[1726541600842,7.45939,2286.7,2286.4,0.43733]
[1726541601452,3.42,2286.5,2286.2,0.3902]
[1726541601753,3.85733,2286.5,2286.2,0.43738]
[1726541601954,3.85733,2286.5,2286.3,0.85206]
[1726541601955,3.42,2286.5,2286.3,0.85206]
[1726541602255,3.85732,2286.5,2286.3,0.4147]
[1726541602449,3.42,2286.5,2286.3,0.4147]
[1726541602649,3.85733,2286.5,2286.3,0.85205]
[1726541603749,3.42,2286.5,2286.3,0.85205]
[1726541604149,3.42,2286.5,2286.3,0.4147]
[1726541604358,3.42,2286.5,2286.3,0.85205]
[1726541604859,3.2078,2286.4,2286.3,0.85205]
[1726541606652,3.6294,2286.4,2286.3,0.85205]
[1726541607565,3.2078,2286.4,2286.3,0.85205]
[1726541608867,0.43731,2286.6,2286.4,0.43733]
[1726541609256,4.0237,2286.7,2286.4,0.43733]
[1726541609466,0.43731,2286.6,2286.4,0.43733]
[1726541613667,0.43731,2286.6,2286.5,0.43732]
[1726541614069,0.43731,2286.6,2286.4,0.43733]
[1726541615872,4.0237,2286.7,2286.3,0.85205]
[1726541616167,3.85733,2286.5,2286.3,0.85205]
[1726541616370,3.42,2286.5,2286.4,0.43734]
[1726541617073,4.0237,2286.7,2286.6,0.4373]
[1726541617375,4.46098,2286.7,2286.6,0.4373]
[1726541617572,8.83458,2286.7,2286.6,0.4373]
[1726541617772,8.83458,2286.7,2286.5,0.43731]
[1726541617974,4.46098,2286.7,2286.5,0.43731]
[1726541618278,4.0237,2286.7,2286.6,0.4373]
[1726541618778,8.83458,2286.7,2286.5,0.43731]
[1726541618970,4.46098,2286.7,2286.5,0.43731]
[1726541622075,0.4373,2286.6,2286.4,0.43733]
[1726541622276,0.4373,2286.6,2286.3,0.4147]
[1726541622478,3.85732,2286.5,2286.0,3.6216]
[1726541622777,3.85732,2286.5,2286.3,0.43735]
[1726541623077,0.43737,2286.3,2286.1,0.8422]
[1726541623278,3.2078,2286.4,2285.6,0.4108]
[1726541623279,3.8253,2286.2,2285.6,0.4108]
[1726541623578,3.2078,2286.1,2286.0,0.43742]
[1726541623975,7.5822,2286.1,2286.0,0.43742]
[1726541624277,3.2078,2286.1,2286.0,0.43742]
[1726541624575,7.4546,2286.2,2286.0,0.43742]
[1726541625072,7.89198,2286.2,2286.0,0.43742]
[1726541625979,3.8415,2286.2,2286.1,0.4374]
[1726541626180,3.8415,2286.2,2285.8,0.4048]
[1726541626181,3.42,2286.3,2286.2,0.43737]
[1726541626478,3.42,2286.3,2286.2,0.43738]
[1726541627577,7.7936,2286.3,2286.1,0.43739]
[1726541627776,3.42,2286.3,2286.2,0.43738]
[1726541628179,7.7936,2286.3,2286.2,0.43738]
[1726541629280,7.7936,2286.3,2286.1,0.43739]
[1726541629477,3.42,2286.3,2286.1,0.43739]
[1726541629877,3.42,2286.3,2286.2,0.43738]
[1726541631183,3.85737,2286.3,2286.1,0.43739]
[1726541631378,3.2078,2286.2,2286.1,0.43739]
[1726541632879,3.2078,2286.2,2285.8,0.4048]
[1726541633180,3.42,2286.1,2285.8,0.4048]
[1726541633483,4.239,2286.1,2285.8,0.4048]
[1726541633682,4.67641,2286.1,2285.9,0.43743]
[1726541634278,0.43743,2286.0,2285.8,0.84225]
[1726541636086,4.67641,2286.1,2285.8,0.84225]
[1726541636386,0.43743,2286.0,2285.8,0.84225]
[1726541637279,0.43744,2285.9,2285.8,0.4048]
[1726541637591,0.43743,2286.0,2285.8,0.4048]
[1726541638089,0.43743,2286.0,2285.8,0.84226]
[1726541640385,4.239,2286.1,2285.9,0.43744]
[1726541640386,4.67641,2286.1,2285.9,0.43744]
[1726541641879,4.67641,2286.1,2285.8,0.4048]
[1726541641880,4.239,2286.1,2286.0,0.43742]
[1726541642881,4.6764,2286.1,2286.0,0.43742]
[1726541644389,4.239,2286.1,2286.0,0.43742]
[1726541647097,4.239,2286.1,2285.8,0.4048]
[1726541647287,4.239,2286.1,2285.9,0.43744]
[1726541647684,4.67641,2286.1,2285.9,0.43744]
[1726541650090,3.42,2286.1,2286.0,0.43742]
[1726541650892,3.42,2286.1,2286.0,0.82612]
[1726541651091,3.8574,2286.1,2286.0,0.82612]
[1726541651598,3.8574,2286.1,2286.0,0.3887]
[1726541652498,3.8574,2286.1,2286.0,0.82612]
[1726541654800,3.8574,2286.1,2286.0,0.3887]
[1726541656002,6.6278,2286.1,2286.0,0.82612]
[1726541657702,4.24347,2286.3,2286.1,0.43739]
[1726541657902,4.24347,2286.3,2286.2,0.4216]
[1726541659603,0.4374,2286.1,2286.0,0.82612]
[1726541659797,6.6278,2286.1,2286.0,0.3887]
[1726541660901,6.6278,2286.1,2286.0,0.82612]
[1726541661709,7.0652,2286.1,2286.0,0.82612]
[1726541662105,3.8574,2286.1,2286.0,0.3887]
[1726541662302,6.6278,2286.1,2286.0,0.82612]
[1726541662502,0.43739,2286.2,2286.0,0.3887]
[1726541662503,0.4374,2286.2,2286.0,0.3887]
[1726541662706,3.6452,2286.1,2286.0,0.3887]
[1726541662894,3.6452,2286.1,2286.0,0.82612]
[1726541663404,3.6452,2286.1,2286.0,0.3887]
[1726541663892,0.4374,2286.1,2286.0,0.82612]
[1726541664300,3.6452,2286.1,2286.0,0.82612]
[1726541664605,3.85739,2286.2,2286.1,0.4374]
[1726541665302,3.85739,2286.2,2286.0,0.3887]
[1726541665601,3.42,2286.2,2286.1,0.4374]
[1726541665813,3.42,2286.2,2286.1,0.8315]
[1726541666104,7.45286,2286.4,2286.2,0.43738]
[1726541666409,7.45286,2286.4,2286.3,0.4202]
[1726541666603,8.56599258,2286.4,2286.3,0.4202]
[1726541666909,12.93959258,2286.4,2286.3,0.4202]
[1726541667606,11.82646,2286.4,2286.3,0.4202]
[1726541668005,7.45286,2286.4,2286.3,0.4202]
[1726541668403,3.2078,2286.4,2286.3,0.85756]
[1726541668606,4.152,2286.9,2286.3,10.7938]
[1726541668912,3.42,2286.8,2286.6,0.43729]
[1726541669210,3.42,2286.8,2286.7,0.84098]
[1726541669407,3.42,2287.0,2286.7,4.7765]
[1726541669614,3.42,2287.0,2286.8,0.43726]
[1726541669911,6.6278,2287.0,2286.8,0.83096]
[1726541670606,6.6278,2287.0,2286.8,0.3937]
[1726541670607,3.2078,2287.0,2286.8,0.3937]
[1726541670809,3.42,2286.9,2286.8,0.3937]
[1726541671407,3.42,2286.9,2286.8,0.83096]
[1726541675918,6.6278,2287.1,2286.9,0.43725]
[1726541677507,7.06501,2287.1,2286.8,0.83095]
[1726541685909,1.58,2287.0,2286.8,0.83095]
[1726541686620,1.58,2287.0,2286.9,0.43725]
[1726541687618,4.7878,2287.1,2287.0,0.43723]
[1726541688923,4.7878,2287.1,2286.9,0.43723]
[1726541689220,4.7878,2287.1,2287.0,0.43723]
[1726541692616,1.58,2287.1,2287.0,0.43723]
[1726541693019,0.392,2287.3,2287.2,0.43719]
[1726541693221,0.392,2287.3,2286.9,3.08351]
[1726541693222,5.732,2287.5,2287.1,1.9849]
[1726541693526,1.58,2287.4,2287.2,0.83468]
[1726541693712,3.2078,2287.4,2287.3,0.43717]
[1726541693913,4.7878,2287.4,2287.3,0.43717]
[1726541695123,1.58,2287.4,2287.3,0.43717]
[1726541695327,0.8147,2287.6,2287.5,0.43713]
[1726541695817,0.8147,2287.6,2287.4,0.43714]
[1726541696019,0.8147,2287.6,2287.5,0.414]
[1726541697429,2.3947,2287.6,2287.5,0.414]
[1726541698023,0.8147,2287.6,2287.5,0.414]
[1726541701041,4.0225,2287.6,2287.5,0.414]
[1726541701839,4.0225,2287.6,2287.5,0.85113]
[1726541702040,6.6178,2287.9,2287.5,0.414]
[1726541702243,7.87157,2287.9,2287.6,0.84921]
[1726541702440,3.41,2287.7,2286.9,3.2078]
[1726541702642,3.41,2287.7,2286.7,1.09319]
[1726541702643,3.41,2287.2,2287.1,0.43721]
[1726541702945,6.6178,2287.2,2287.0,0.84932]
[1726541703151,0.83,2287.1,2287.0,0.84932]
[1726541703338,3.2078,2287.5,2287.2,0.43717]
[1726541703539,3.2078,2287.5,2287.0,0.4121]
[1726541703540,4.0217,2287.5,2287.3,0.82647]
[1726541704354,0.4371,2287.7,2287.4,0.43715]
[1726541704644,3.2078,2287.6,2287.4,0.421]
[1726541704836,3.2078,2287.6,2287.4,0.85814]
[1726541710044,0.4371,2287.7,2287.4,0.85814]
[1726541710244,3.2078,2287.6,2287.4,0.85814]
[1726541711050,7.05492,2287.6,2287.4,0.421]
[1726541711244,6.6178,2287.6,2287.4,0.85815]
[1726541711943,6.6178,2287.6,2287.4,0.85814]
[1726541712249,1.09746268,2287.5,2287.4,0.85814]
[1726541714154,5.46946268,2287.5,2286.8,3.2078]
[1726541714348,1.1919,2287.4,2287.0,0.39]
[1726541714540,1.1919,2287.4,2287.0,0.82721]
[1726541714541,0.43718,2287.3,2287.0,0.82721]
[1726541714851,3.41,2287.2,2286.4,3.612]
[1726541715050,3.2078,2287.0,2286.7,0.43728]
[1726541715243,0.4012,2286.9,2286.7,0.43728]
[1726541715440,0.8199,2286.9,2286.7,0.43728]
[1726541715843,0.8199,2286.9,2286.8,0.43727]
[1726541716040,1.09746268,2287.1,2286.6,7.7828]
[1726541716252,4.1297,2287.3,2287.0,0.43723]
[1726541716548,4.0277,2287.3,2287.1,0.3913]
[1726541717257,7.87487,2287.3,2287.1,0.3913]
[1726541717552,12.24687,2287.3,2286.9,0.43723]
[1726541717746,3.2078,2287.0,2286.9,0.43723]
[1726541718151,1.58,2287.1,2286.9,0.43723]
[1726541718556,3.2078,2287.0,2286.9,0.43723]
[1726541718754,1.58,2287.1,2286.9,0.43723]
[1726541718954,3.2078,2287.0,2286.9,0.43723]
[1726541719154,3.2078,2287.0,2286.7,0.3913]
[1726541719155,3.2078,2287.0,2286.7,0.82857]
[1726541719350,0.8179,2286.9,2286.7,0.82857]
[1726541720054,3.41,2287.1,2286.7,0.3913]
[1726541720356,7.87288,2287.3,2286.9,0.43724]
[1726541720561,0.43719,2287.2,2287.0,0.4014]
[1726541720755,3.84721,2287.1,2286.7,0.3913]
[1726541720954,3.2078,2287.2,2286.9,0.43724]
[1726541721348,3.645,2287.2,2286.8,0.43725]
[1726541722660,3.2078,2286.9,2286.8,0.43725]
[1726541722861,3.645,2287.2,2286.8,0.43725]
[1726541723055,0.43722,2287.1,2286.7,0.82857]
[1726541723263,0.43722,2287.1,2286.7,0.3913]
[1726541723264,3.2078,2286.9,2286.7,0.3913]
[1726541723455,3.41,2287.1,2286.8,0.43726]
[1726541724160,6.6178,2287.1,2286.8,0.43726]
[1726541724656,7.05501,2287.1,2286.8,0.43726]
[1726541725061,3.84721,2287.1,2286.8,0.43726]
[1726541725255,3.2078,2287.0,2286.8,0.43726]
[1726541727660,0.3883,2286.9,2286.8,0.43726]
[1726541728559,3.2078,2287.0,2286.9,0.43725]
[1726541729560,3.2078,2287.0,2286.8,0.43725]
[1726541730066,0.4035,2286.9,2286.8,0.43725]
[1726541731163,0.84075,2286.9,2286.7,0.82857]
[1726541731363,0.4035,2286.9,2286.7,0.82857]
[1726541731865,0.3905,2286.8,2286.6,0.4373]
[1726541732062,3.2078,2286.7,2286.6,0.4373]
[1726541732767,3.64509,2286.7,2286.5,0.4014]
[1726541732971,6.6178,2286.7,2286.4,0.43733]
[1726541733155,0.4006,2286.6,2286.3,0.83425]
[1726541733465,0.3971,2286.5,2286.4,0.43734]
[1726541734466,0.3905,2286.8,2286.3,0.3969]
[1726541734662,0.3905,2286.8,2286.7,0.43728]
[1726541740867,3.8071,2286.9,2286.8,0.43727]
[1726541741971,1.9771,2286.9,2286.8,0.43727]
[1726541749881,0.3971,2286.9,2286.8,0.43727]
[1726541750179,3.2078,2287.0,2286.9,0.43725]
[1726541751176,4.254,2287.4,2287.3,0.43717]
[1726541751379,4.254,2287.4,2286.9,9.551]
[1726541751380,6.16916,2287.4,2286.9,3.5982]
[1726541751572,1.58,2287.2,2287.1,0.43721]
[1726541751974,4.7878,2287.2,2287.1,0.43721]
[1726541753985,1.58,2287.2,2287.1,0.43721]
[1726541756881,3.2078,2287.4,2287.3,0.43717]
[1726541759390,3.2078,2287.4,2287.3,0.84647]
[1726541759582,2.4186,2287.5,2287.4,0.43715]
[1726541759583,0.8386,2287.5,2287.4,0.43715]
[1726541759886,4.7878,2287.7,2287.6,0.43711]
[1726541760093,4.0448,2287.7,2287.6,0.43711]
[1726541764286,5.6248,2287.7,2287.6,0.43711]
[1726541767079,6.0619,2287.7,2287.5,0.43713]
[1726541767282,4.4819,2287.7,2287.5,0.43713]
[1726541767493,1.975,2287.6,2287.5,0.43713]
[1726541768085,6.3462,2287.6,2287.5,0.43713]
[1726541770187,1.58,2287.6,2287.5,0.43713]
[1726541770388,4.0448,2287.7,2287.6,0.43711]
[1726541770595,4.0448,2287.7,2287.3,1.50222]
[1726541770596,1.58,2287.9,2287.4,1.58]
[1726541770783,1.58,2287.8,2287.7,0.43709]
[1726541773092,1.58,2287.8,2287.6,0.4371]
[1726541773292,0.3979,2287.7,2287.6,0.4371]
[1726541774193,0.3979,2287.7,2287.3,0.8234]
[1726541774194,5.2062,2287.7,2287.5,0.43712]
[1726541774385,5.6126,2287.6,2287.5,0.43712]
[1726541779692,3.2078,2287.6,2287.5,0.43712]
[1726541781598,3.2078,2287.6,2287.5,1.52996]
[1726541781789,3.2078,2287.6,2287.5,1.91336]
[1726541781989,3.2078,2287.6,2287.5,0.82052]
[1726541783792,3.2078,2287.6,2287.5,0.43712]
[1726541787900,3.64491,2287.6,2287.5,0.43712]
[1726541788202,3.59,2287.6,2287.3,0.8234]
[1726541788507,1.58,2287.4,2287.3,0.8234]
[1726541788888,3.59,2287.6,2287.5,0.43713]
[1726541789292,3.2078,2287.6,2287.5,0.43713]
[1726541789991,0.3822,2287.8,2287.7,0.43709]
[1726541790192,3.2078,2288.0,2287.8,0.43707]
[1726541790402,3.2078,2288.0,2287.9,0.7832]
[1726541792503,4.7878,2288.0,2287.9,0.7832]
[1726541793195,4.7878,2288.0,2287.9,0.3844]
[1726541795206,5.22484,2288.0,2287.6,0.4371]
[1726541795407,0.43706,2287.9,2287.7,0.4182]
[1726541795600,1.58,2287.8,2287.7,0.4182]
[1726541800407,1.58,2287.8,2287.7,0.85529]
[1726541802207,1.58,2287.8,2286.9,1.12622311]
[1726541802208,11.9512,2287.8,2286.4,2.21956311]
[1726541802407,1.58,2287.2,2286.7,0.7942]
[1726541802709,3.2078,2287.1,2287.0,0.43721]
[1726541803206,3.2078,2287.1,2286.9,0.43723]
[1726541804806,3.2078,2287.1,2286.9,0.43724]
[1726541805513,3.2078,2287.1,2287.0,0.43723]
[1726541805709,1.08063267,2287.3,2287.2,0.43719]
[1726541806104,0.8289,2287.7,2287.2,5.952]
[1726541806300,0.8289,2287.7,2287.3,1.2032]
[1726541806711,0.8289,2287.7,2287.5,0.43713]
[1726541807709,0.8289,2287.7,2287.4,0.43714]
[1726541807915,3.2078,2287.5,2287.4,0.43714]
[1726541808307,3.2078,2287.5,2287.3,1.64036]
[1726541811907,3.2078,2287.5,2287.4,0.43715]
[1726541812115,3.2078,2287.5,2287.3,1.64036]
[1726541814403,3.2078,2287.5,2287.3,1.2032]
[1726541815417,3.2078,2287.5,2287.4,0.43715]
[1726541817320,3.2078,2287.5,2286.9,3.2078]
[1726541817610,0.4188,2287.6,2285.8,3.94178088]
[1726541817611,3.41,2287.0,2286.2,0.4072]
[1726541817816,3.2078,2286.4,2286.3,0.3907]
[1726541818206,3.2078,2286.4,2286.3,0.82806]
[1726541819219,3.2078,2286.4,2286.3,0.3907]
[1726541820715,3.2078,2286.4,2286.3,0.82806]
[1726541821413,3.2078,2286.4,2286.3,11.20166]
[1726541821613,3.2078,2286.7,2286.5,0.43732]
[1726541821920,3.2078,2286.7,2286.6,0.4053]
[1726541822110,3.2078,2286.7,2286.6,0.8426]
[1726541822516,3.2078,2286.7,2286.6,0.4053]
[1726541824023,3.2078,2286.7,2286.6,0.8426]
[1726541830328,3.2078,2286.7,2286.5,0.43731]
[1726541831924,3.2078,2286.7,2286.6,0.4373]
[1726541832635,3.2078,2286.7,2286.4,0.4223]
[1726541832832,3.2078,2286.7,2286.5,0.43732]
[1726541833227,3.2078,2286.7,2286.6,0.4373]
[1726541833622,3.2078,2286.7,2286.4,0.4223]
[1726541834023,3.2078,2286.7,2286.5,0.4373]
[1726541835223,3.2078,2286.7,2286.4,0.4223]
[1726541835224,3.2078,2286.7,2286.6,0.4373]
[1726541835631,3.2078,2286.7,2286.6,4.8109]
[1726541836330,3.2078,2287.0,2286.9,0.43725]
[1726541836531,3.2078,2287.0,2286.9,4.81005]
[1726541836731,3.2078,2287.0,2286.9,10.81005]
[1726541837532,3.2078,2287.3,2286.9,10.81005]
[1726541837742,3.2078,2287.3,2286.9,0.43725]
[1726541837936,3.2078,2287.3,2287.2,0.43719]
[1726541842735,3.2078,2287.3,2286.9,0.43725]
[1726541842736,0.85552,2287.6,2287.4,0.43714]
[1726541842933,3.2078,2287.5,2287.4,0.43714]
[1726541846036,4.152,2287.9,2287.8,0.43707]
[1726541847636,4.152,2287.9,2287.6,0.8095]
[1726541847844,3.2078,2287.7,2287.6,1.24661]
[1726541848238,3.2078,2287.7,2287.6,5.61781]
[1726541849137,4.152,2287.9,2287.8,0.43707]
[1726541850945,4.152,2287.9,2287.7,0.43708]
[1726541851149,0.6197,2287.8,2287.7,0.43708]
[1726541852152,0.386,2287.8,2287.7,0.43708]
[1726541853846,4.02954,2288.0,2287.8,0.43707]
[1726541854346,3.5925,2288.0,2287.9,0.43706]
[1726541855360,4.02954,2288.0,2287.9,0.43706]
[1726541855847,3.5925,2288.0,2287.9,0.43706]
[1726541878168,0.3847,2288.0,2287.9,0.43706]
[1726541878564,4.27849,2288.3,2288.1,0.43701]
[1726541878565,5.84849,2288.3,2288.1,0.43701]
[1726541878872,4.001,2288.3,2288.2,0.437]
[1726541879274,8.3714,2288.3,2288.1,0.437]
[1726541879466,4.001,2288.3,2288.2,0.437]
[1726541879665,0.3929,2288.3,2288.2,0.437]
[1726541880070,3.2078,2288.6,2288.1,1.57]
[1726541880270,3.2078,2288.6,2288.5,0.43694]
[1726541880972,4.7778,2288.6,2288.5,0.43694]
[1726541881374,3.2078,2288.6,2288.5,0.43694]
[1726541882171,3.2078,2288.8,2288.7,0.43689]
[1726541890381,3.2078,2288.8,2288.7,0.4369]
[1726541890683,3.2078,2288.8,2288.2,2.27908]
[1726541891285,3.2078,2288.8,2288.7,0.4369]
[1726541900180,3.2078,2288.8,2288.7,4.8057]
[1726541900482,3.2078,2288.8,2288.7,0.4369]
[1726541900787,3.2078,2288.8,2288.7,4.8057]
[1726541900988,3.2078,2288.8,2288.7,0.4369]
[1726541902583,0.3949,2288.9,2288.8,0.43688]
[1726541902884,3.6027,2288.9,2288.8,0.43688]
[1726541904984,1.09222,2288.8,2288.4,0.43694]
[1726541905184,4.7778,2288.5,2288.4,0.43696]
[1726541905486,3.2078,2288.5,2288.4,0.43696]
[1726541907091,3.2078,2288.5,2288.4,0.84826]
[1726541907287,3.8778,2288.7,2288.6,0.43692]
[1726541908893,3.4409,2288.7,2288.6,0.43692]
[1726541909489,3.8778,2288.7,2288.6,0.43692]
[1726541912488,3.4409,2288.7,2288.6,0.43692]
[1726541913498,3.8778,2288.7,2288.6,0.43692]
[1726541917399,3.6447,2288.7,2288.6,0.43692]
[1726541917894,3.2078,2288.7,2288.6,0.43692]
[1726541920197,3.6447,2288.7,2288.6,0.43692]
[1726541920397,3.2078,2288.7,2288.6,0.43692]
[1726541928399,2.24,2288.8,2288.7,0.4369]
[1726541928900,6.6088,2288.8,2288.7,0.4369]
[1726541929092,2.24,2288.8,2288.7,0.4369]
[1726541929289,6.6088,2288.8,2288.7,0.4369]
[1726541929598,2.24,2288.8,2288.7,0.4369]
[1726541929904,6.6088,2288.8,2288.7,0.4369]
[1726541930102,2.24,2288.8,2288.7,0.4369]
[1726541930400,1.57,2288.8,2288.7,0.4369]
[1726541930597,1.91186418,2288.9,2288.7,0.4369]
[1726541930998,6.28066418,2288.9,2288.5,0.3844]
[1726541931196,1.91186418,2288.9,2288.5,0.3844]
[1726541931400,1.91186418,2288.9,2288.8,0.43688]
[1726541931903,6.28066418,2288.9,2288.8,0.43688]
[1726541933104,5.84379418,2288.9,2288.8,0.43688]
[1726541933899,4.7637,2288.9,2288.8,0.43688]
[1726541934197,6.28061237,2288.9,2288.8,0.43688]
[1726541934496,5.84375237,2288.9,2288.8,0.43688]
[1726541934899,4.7637,2288.9,2288.8,0.43688]
[1726541935106,5.84374457,2288.9,2288.8,0.43688]
[1726541935304,5.84375387,2288.9,2288.8,0.43688]
[1726541935505,5.84375883,2288.9,2288.8,0.43688]
[1726541937606,7.9715,2288.9,2288.8,0.43688]
[1726541938700,3.6027,2288.9,2288.8,0.43688]
[1726541940699,3.2078,2288.9,2288.8,0.43688]
[1726541942798,4.7778,2288.9,2288.8,0.85868]
[1726541945201,1.57,2288.9,2288.8,0.85868]
[1726541945414,4.7778,2288.9,2288.8,0.85868]
[1726541946812,3.2078,2288.9,2288.8,0.85868]
[1726541958614,1.57,2289.0,2288.9,0.43686]
[1726541958916,4.7778,2289.0,2288.9,0.43686]
[1726541959110,1.57,2289.0,2288.9,0.85216]
[1726541959315,4.7778,2289.0,2288.9,0.85216]
[1726541962314,4.7778,2289.0,2288.3,4.3424233]
[1726541962315,9.1466,2289.0,2288.3,4.3424233]
[1726541962612,4.7778,2288.7,2288.6,0.43692]
[1726541963515,3.2078,2288.7,2288.6,0.43692]
[1726541964107,0.4046,2288.8,2288.7,0.4369]
[1726541964305,0.4046,2288.8,2288.7,0.8256]
[1726541966110,0.4046,2288.8,2288.7,0.4369]
[1726541967115,1.9746,2288.8,2288.7,0.4369]
[1726541968812,0.4046,2288.8,2288.7,0.4369]
[1726541980015,3.6124,2288.8,2288.7,0.4369]
[1726541981118,0.4046,2288.8,2288.7,0.4369]
[1726541981322,3.6124,2288.8,2288.7,0.4369]
[1726541982121,0.4046,2288.8,2288.7,0.4369]
[1726541982628,3.6124,2288.8,2288.7,0.4369]
[1726541983429,9.6124,2288.8,2288.1,1.1346233]
[1726541983612,9.6124,2288.8,2287.8,2.83655827]
[1726541983613,0.43704,2288.0,2287.8,2.13899496]
[1726541983815,0.43704,2288.0,2287.8,0.43706]
[1726541983816,3.2078,2287.9,2287.8,0.43706]
[1726541984018,7.579,2287.9,2287.8,0.43706]
[1726541984220,8.01607,2287.9,2287.5,0.8252]
[1726541984423,0.43708,2287.8,2287.5,1.26233]
[1726541984620,3.2078,2287.7,2287.6,0.4371]
[1726541985213,3.2078,2288.0,2287.8,0.43707]
[1726541985418,3.2078,2288.0,2287.6,1.57]
[1726541985419,3.2078,2288.0,2287.6,1.9639]
[1726541985626,3.2078,2288.0,2287.9,0.43706]
[1726541998219,3.2078,2288.0,2287.9,4.80746]
[1726541998429,3.2078,2288.3,2288.2,0.437]
[1726542008839,1.9706,2288.4,2288.3,0.43698]
[1726542009036,5.1784,2288.4,2288.3,0.43698]
[1726542009234,3.6084,2288.4,2288.3,0.43698]
[1726542009434,5.1784,2288.4,2288.3,0.43698]
[1726542012936,3.6084,2288.4,2288.3,0.43698]
[1726542013240,3.2078,2288.4,2288.3,0.43698]
[1726542019340,3.6147,2288.7,2288.6,0.43692]
[1726542019546,3.2078,2288.7,2288.6,0.43692]
[1726542026042,5.1611,2288.7,2288.6,0.43692]
[1726542027154,1.9533,2288.7,2288.6,0.43692]